Cogmind - Beta 14 @@@ ROGUE MODE // 2025.03.27 @ 12:09:15 Player: Voldy Result: Destroyed by Y-45 Defender with Beam Rifle Performance ------------- Evolutions (2) 1000 Regions Visited (3) 600 Robots Destroyed (59) 295 Value Destroyed (1466) 1466 Prototype IDs (8) 160 Alien Tech Used (0) 0 Bonus (99) 99 TOTAL SCORE: 3620 Bonus ------- High Alert Combat Kills 99 Cogmind --------- Core Integrity 0/550 Matter 249/300 Energy 90/100 System Corruption 9% Temperature Cool (15) Movement Core (1500) Ox29 Location -8/Materials Parts ------- > --- POWER (2) -------- (None) > --- PROPULSION (2) --- (None) > --- UTILITY (5) ------ Huge Storage Unit Structural Scanner Advanced Visual Processing Unit Transport Network Coupler > --- WEAPON (2) ------- Particle Gun Advanced Assault Cannon > --- INVENTORY (25) --- Wheel Peak State ------------ > --- POWER ------------ Improved Ion Engine Cooled Ion Engine > --- PROPULSION ------- Wheel Wheel > --- UTILITY ---------- Huge Storage Unit Structural Scanner Advanced Visual Processing Unit Transport Network Coupler Recalibrator > --- WEAPON ----------- Particle Gun Advanced Assault Cannon > --- INVENTORY -------- Wheel [Rating: 23] Favorites ----------- Power Light Ion Engine Engine Light Ion Engine Power Core Light Nuclear Core Propulsion Wheel Treads Light Treads Leg Aluminum Leg Wheel Wheel Flight Unit Flight Unit Utility Machine Analyzer Device Structural Scanner Storage Large Storage Unit Processor Machine Analyzer Protection Light Armor Plating Weapon Grenade Launcher Energy Gun Particle Gun Energy Cannon Heavy Particle Cannon Ballistic Gun Assault Rifle Ballistic Cannon Advanced Assault Cannon Launcher Grenade Launcher Build | -11 -10 -9 -8 ------- Run | Yrd Mat Mat Mat Slots Evolved 4 | . . 2 2 Power 1 | . . 1 . Propulsion . | . . . . Utility 3 | . . 1 2 Weapon . | . . . . Parts Attached 67 | 6 10 16 35 Power 13 | 1 2 3 7 Engine 12 | 1 2 3 6 Core 1 | . . . 1 Reactor . | . . . . Propulsion 25 | 3 3 5 14 Treads 2 | . . . 2 Leg 5 | 1 2 . 2 Wheel 14 | 2 1 4 7 Hover . | . . . . Flight 4 | . . 1 3 Utility 13 | . 2 3 8 Device 3 | . . . 3 Storage 4 | . . 2 2 Processor 3 | . 1 . 2 Hackware . | . . . . Protection 3 | . 1 1 1 Artifact . | . . . . Weapon 16 | 2 3 5 6 Energy Gun 6 | 1 1 . 4 Energy Cannon 2 | . . 2 . Ballistic Gun 3 | 1 . 2 . Ballistic Cannon 1 | . . . 1 Launcher 4 | . 2 1 1 Special Weapon . | . . . . Impact Weapon . | . . . . Slashing Weapon . | . . . . Piercing Weapon . | . . . . Special Melee Weapon . | . . . . Unidentified Prototypes 3 | . . 1 2 Parts Lost 24 | . 5 1 18 Power 8 | . 2 1 5 Propulsion 9 | . 2 . 7 Utility 5 | . . . 5 Weapon 2 | . 1 . 1 Highest Loss Streak 5 | . 3 1 5 To Critical Strikes . | . . . . Average Slot Usage (%) 85 | . 88 96 73 Engine 17 | . 14 21 16 Leg 3 | . 1 9 . Wheel 15 | . 25 13 11 Device 2 | . . . 6 Storage 6 | . . 9 7 Processor 12 | . 10 11 15 Protection 6 | . 7 11 1 Energy Gun 3 | . 1 . 7 Energy Cannon 3 | . . 8 1 Ballistic Gun 4 | . 14 4 . Launcher 6 | . 12 7 2 Peak Build Rating 23 | 5 9 18 23 Average Rating 12 | 3 7 14 15 On Entrance 7 | . 5 9 16 Naked Turns . | . . . . Heaviest Build 106 | 7 9 40 106 Greatest Support 40 | 20 20 28 40 Greatest Overweight (x) 29 | . . 1 29 Average Overweight (x) 1 | . . . 3 Largest Inventory Capacity 25 | 5 5 15 25 Average Capacity 12 | 5 5 13 17 Most Carried 14 | 5 5 14 13 Average Carried 5 | 2 4 9 2 Final Capacity 25 | 5 5 15 25 Final Carried 13 | 4 4 13 1 Class Distribution -------------------- 56% | Mutant 43% | Scavenger-Mutant Dominant Class ---------------- Mutant | -10/Materials Scavenger-Mutant | -9/Materials Scavenger-Mutant | -8/Materials Resources | -11 -10 -9 -8 ----------- Run | Yrd Mat Mat Mat Matter Collected 1568 | 272 314 433 549 Remotely . | . . . . Salvage Created 1597 | 49 357 513 678 Parts 117 | 1 26 40 50 Haulers Intercepted 3 | . . 1 2 Recyclers Shooed 6 | . 1 5 . Parts Field Recycled . | . . . . Retrieved Matter . | . . . . Parts Self-Destructed . | . . . . Prevented . | . . . . Kills | -11 -10 -9 -8 ------- Run | Yrd Mat Mat Mat Combat Hostiles Destroyed 42 | 1 14 10 17 Guns 11 | 1 3 . 7 Cannons 6 | . . 4 2 AOE 25 | . 11 6 8 Classes Destroyed 10 | 1 4 3 2 Worker 4 | . 2 1 1 Builder 2 | . . . 2 Hauler 3 | . . 1 2 Recycler 4 | . 1 2 1 Mechanic 1 | . 1 . . Watcher 3 | . . 3 . Swarmer 14 | . 6 3 5 Grunt 22 | 1 8 4 9 Sentry 5 | . . 3 2 Hunter 1 | . . . 1 Best Kill Streak 7 | 1 7 7 5 Combat Bots Only 6 | 1 6 4 3 Max Kills in Single Turn 3 | 1 2 3 2 Gunslinging . | . . . . Exploded 2 | . 2 2 1 Melee . | . . . . Uniques/NPCs Destroyed . | . . . . Combat | -11 -10 -9 -8 -------- Run | Yrd Mat Mat Mat Hostile Shots Fired 243 | 6 42 30 165 Missed 80 | 2 10 15 53 Damage Taken 2333 | 43 415 176 1699 Core 639 | . 61 17 561 Absorbed by Shields . | . . . . Redirected to Shielding 52 | . 29 . 23 Core Remaining (%) 90 | 100 75 95 . Volleys Fired 138 | 4 32 31 71 Largest 2 | 2 2 2 2 Hottest 131 | 60 60 105 131 Shots Fired 197 | 8 54 44 91 Gun 107 | 8 35 15 49 Cannon 32 | . . 14 18 Launcher 58 | . 19 15 24 Special . | . . . . Kinetic 57 | 4 29 15 9 Thermal 72 | . . 14 58 Explosive 58 | . 19 15 24 Electromagnetic 10 | 4 6 . . Robot Hit Streak 8 | 5 7 8 5 Robot Miss Streak 12 | 3 4 12 7 Penetration Max . | . . . . Secondary Targets . | . . . . Shots Hit Robots 92 | 5 27 16 44 Core Hits 104 | 2 28 29 45 Critical Kills . | . . . . Critical Parts Destroyed 1 | . 1 . . Critical Strikes 2 | . 1 . 1 Burn 1 | . . . 1 Destroy 1 | . 1 . . Melee Attacks . | . . . . Impact . | . . . . Slashing . | . . . . Piercing . | . . . . Sneak Attacks . | . . . . Combat Hostiles . | . . . . Follow-up Attacks . | . . . . Damage Inflicted 3639 | 63 1059 953 1564 Guns 882 | 63 242 69 508 Cannons 424 | . . 187 237 Explosions 2321 | . 813 689 819 Melee . | . . . . Ramming 12 | . 4 8 . Kinetic 447 | 36 208 69 134 Thermal 798 | . . 187 611 Explosive 2220 | . 786 615 819 Electromagnetic 162 | 27 61 74 . Impact . | . . . . Slashing . | . . . . Piercing . | . . . . Highest Corruption 9 | . . . 9 Average Corruption 9 | . . . 9 Corruption Purged . | . . . . Corruption Blocked . | . . . . Effects 28 | . . . 28 Message Errors 9 | . . . 9 Matter Fused 9 | . . . 9 Heat Flow Errors 4 | . . . 4 Data Loss (minor) 2 | . . . 2 Data Loss (major) 1 | . . . 1 Misfires 2 | . . . 2 Weapon Failures 1 | . . . 1 Overload Shots . | . . . . Overflow Damage 79 | . 24 3 52 Projectiles 5 | . . 1 4 Explosions 74 | . 24 2 48 Melee . | . . . . Knockbacks 1 | . . . 1 Impact . | . . . . Kinetic 1 | . . . 1 Secondary . | . . . . Self-Inflicted Damage 245 | . 123 33 89 Shots 12 | . 7 2 3 Rammed 2 | . 1 . 1 Targets Rammed 4 | . 1 2 1 Kicked 2 | . . 2 . Crushed . | . . . . Highest Temperature 541 | 18 14 126 541 Average Temperature 103 | 8 6 42 134 Received Heat Transfer 651 | 24 63 42 522 Effects 21 | . . . 21 Shutdowns 3 | . . . 3 Energy Bleed 2 | . . . 2 Interference 10 | . . . 10 Matter Decay 1 | . . . 1 Damage (major) 5 | . . . 5 Siege Activations . | . . . . Robots Corrupted . | . . . . Combat Hostiles . | . . . . Parts Fried . | . . . . Impact Corruptions . | . . . . Robots Melted . | . . . . Combat Hostiles . | . . . . Parts Melted 4 | . . . 4 Heat Transferred 1702 | . . 296 1406 Parts Sabotaged . | . . . . Parts Stolen . | . . . . Parts Stripped . | . . . . Power Chain Reactions 2 | . 1 1 . Alert | -11 -10 -9 -8 ------- Run | Yrd Mat Mat Mat Peak Influence 548 | 20 511 548 497 Initial 179 | . 13 131 179 Average 313 | 1 207 355 366 Maximum Alert Level 2 | . 2 2 2 Low Security (%) 20 | 100 49 10 4 Level 1 43 | . 42 39 53 Level 2 35 | . 7 50 42 Level 3 . | . . . . Level 4 . | . . . . Level 5 . | . . . . High Security . | . . . . Max Security . | . . . . Squads Dispatched 10 | . 5 1 4 Investigation 3 | . 2 1 . Extermination . | . . . . Reinforcement 5 | . 3 . 2 Assault 1 | . . . 1 Garrison 1 | . . . 1 Intercept . | . . . . Searches Triggered . | . . . . Construction Impeded 1 | . . . 1 Haulers Reinforced . | . . . . Active Scanning Responses . | . . . . Cargo Convoy Interrupts . | . . . . Stealth | -11 -10 -9 -8 --------- Run | Yrd Mat Mat Mat Distress Signals 3 | . 1 2 . Communications Jammed . | . . . . Distress Signals . | . . . . Times Spotted 65 | 1 20 16 28 Peak Tracking Total 6 | 1 4 5 6 Tactical Retreats 3 | . . . 3 Traps | -11 -10 -9 -8 ------- Run | Yrd Mat Mat Mat Traps Triggered 2 | . 1 1 . Indirectly 1 | . 1 . . Trap Hack Attempts . | . . . . Triggered . | . . . . Disarmed . | . . . . Reprogrammed . | . . . . Reused . | . . . . Traps Extracted . | . . . . Installed . | . . . . Triggered . | . . . . Machines | -11 -10 -9 -8 ---------- Run | Yrd Mat Mat Mat Machines Disabled 6 | . 3 3 . Max in Single Turn 1 | . 1 1 . Garrison Access 1 | . . . 1 Machines Repaired . | . . . . Machines Dismantled . | . . . . Machines Sabotaged . | . . . . Overloaded Fab Kills . | . . . . Hacking | -11 -10 -9 -8 --------- Run | Yrd Mat Mat Mat Machines Accessed 8 | . 4 3 1 Terminals 5 | . 3 2 . Fabricators . | . . . . Repair Stations . | . . . . Recycling Units 3 | . 1 1 1 Scanalyzers . | . . . . Garrison Access . | . . . . Total Hacks 34 | . 17 14 3 Successful 25 | . 13 9 3 Failed 9 | . 4 5 . Catastrophic 1 | . . 1 . Database Lockouts . | . . . . Manual . | . . . . Terminals 22 | . 13 9 . Fabricators . | . . . . Repair Stations . | . . . . Recycling Units 12 | . 4 5 3 Scanalyzers . | . . . . Garrison Access . | . . . . Terminal Hacks 16 | . 9 7 . Record 8 | . 6 2 . Prototype ID Bank 2 | . . 2 . Alert Level 3 | . . 3 . Patrol Status 1 | . 1 . . Recall Investigation 1 | . 1 . . Hauler Manifests 1 | . 1 . . Fabricator Hacks . | . . . . Repair Station Hacks . | . . . . Recycling Unit Hacks 9 | . 4 2 3 Recycle Component 1 | . 1 . . Process 3 | . 1 1 1 Report Inventory 3 | . 1 1 1 Retrieve Matter 2 | . 1 . 1 Scanalyzer . | . . . . Garrison Access Hacks . | . . . . Unauthorized Hacks . | . . . . Terminals . | . . . . Fabricators . | . . . . Repair Stations . | . . . . Recycling Units . | . . . . Scanalyzers . | . . . . Garrison Access . | . . . . Data Cores Recovered . | . . . . Used . | . . . . Hacking Detections 5 | . 3 2 . Full Trace Events 3 | . 1 2 . Feedback Events . | . . . . Feedback Blocked . | . . . . Robot Schematics Acquired . | . . . . Robots Built . | . . . . Authchips . | . . . . Time . | . . . . Total Robot Build Rating . | . . . . Part Schematics Acquired . | . . . . Parts Built . | . . . . Authchips . | . . . . Time . | . . . . Total Part Build Rating . | . . . . Parts Repaired . | . . . . Time . | . . . . Parts Recycled 1 | . 1 . . Recycled Matter 658 | . 28 612 18 Retrieved Matter 46 | . 28 . 18 Retrieved Components . | . . . . Parts Scanalyzed . | . . . . Part Schematics Acquired . | . . . . Parts Damaged . | . . . . Bothacking | -11 -10 -9 -8 ------------ Run | Yrd Mat Mat Mat Used RIF Installer . | . . . . Robots Hacked . | . . . . Non-combat . | . . . . Combat . | . . . . Robot Hacks Applied . | . . . . Relay Couplers Released 1 | . . . 1 Machine Destruction 1 | . . . 1 Fabnet Peak Effective % . | . . . . Robots Rewired . | . . . . Allies Hacked . | . . . . Hacks Repelled . | . . . . Allies | -11 -10 -9 -8 -------- Run | Yrd Mat Mat Mat Total Allies . | . . . . Largest Group . | . . . . Highest-Rated Group . | . . . . Highest-Rated Ally . | . . . . Total Orders . | . . . . Ally Attacks . | . . . . Total Damage . | . . . . Kills . | . . . . Allies Corrupted . | . . . . Allies Melted . | . . . . Intel | -11 -10 -9 -8 ------- Run | Yrd Mat Mat Mat Robot Analysis Total . | . . . . Derelict Logs Recovered . | . . . . Drone Launches . | . . . . Drone Recoveries . | . . . . Exploration | -11 -10 -9 -8 ------------- Run | Yrd Mat Mat Mat Turns Passed 1937 | 87 405 666 779 Spaces Moved 1254 | 80 352 450 372 Core 43 | 26 . . 17 Treads 17 | . . . 17 Legs 159 | . 11 133 15 Wheels 1028 | 54 341 317 316 Hover . | . . . . Flight 7 | . . . 7 Fastest Speed 50 | 50 80 105 80 Average Speed 113 | 70 81 120 144 Slowest Speed 1500 | 80 120 190 1500 Overloaded Moves . | . . . . Propulsion Burnouts . | . . . . Robots Hopped . | . . . . Cave-ins Triggered 1 | . . . 1 Exploration Rate (%) 36 | 6 72 44 22 Regions Visited 3 Branch Regions . Pre-discovered Areas . | . . . . Known Exits Taken . | . . . . Unknown Exits Taken 3 | 1 1 1 . Scrap Searched . | . . . . Spaces Dug . | . . . . Terrain Destroyed 292 | . 94 62 136 Melee . | . . . . Projectile 8 | . . 2 6 AOE 284 | . 94 60 130 Terrain Rammed . | . . . . Walls Destroyed . | . . . . Machines Disabled . | . . . . Actions | -11 -10 -9 -8 --------- Run | Yrd Mat Mat Mat Total 1581 | 103 417 529 532 Wait 12 | 4 7 1 . Move 1251 | 79 351 449 372 Hop . | . . . . Pick Up 69 | 9 12 21 27 Fast Attach . | . . . . Attach 44 | 6 7 6 25 Detach 3 | 1 . 1 1 Swap 24 | . 3 10 11 Drop 36 | . 4 8 24 Fire 138 | 4 32 31 71 Melee . | . . . . Ram 2 | . 1 . 1 Kick 2 | . . 2 . Crush . | . . . . Escape Stasis . | . . . . Rewire . | . . . . Trap . | . . . . Miscellaneous . | . . . . Route ------- -11/Scrapyard -10/Materials (discovered 3 exits: *Mat x2 / [*Min]) -9/Materials (discovered 2 exits: *Mat / [*Min]) -8/Materials History --------- Turn | Location | Event 2 | -11/Scrapyard | Met Revision 17 61 | -11/Scrapyard | Discovered new exit (range 8) 88 | -11/Scrapyard | Entered Materials 265 | -10/Materials | Lost 3 parts (2p1w) 288 | -10/Materials | Discovered new exit (range 13) 304 | -10/Materials | Build established: Mutant 330 | -10/Materials | Discovered new exit (range 7) 451 | -10/Materials | Discovered new exit (range 10) 493 | -10/Materials | Entered another Materials area 493 | -9/Materials | Evolved 2 slots: Power x1, Utility x1 785 | -9/Materials | Discovered new exit (range 16) 952 | -9/Materials | Discovered new exit (range 11) 1074 | -9/Materials | Build established: Scavenger-Mutant 1159 | -9/Materials | Entered another Materials area 1159 | -8/Materials | Evolved 2 slots: Utility x2 1193 | -8/Materials | Crushed by falling debris 1236 | -8/Materials | Lost 4 parts (1p1n2u) 1420 | -8/Materials | Core integrity fell below 50% 1466 | -8/Materials | Lost 4 parts (1p2n1w) 1911 | -8/Materials | Core integrity fell below 20% 1938 | -8/Materials | Destroyed by Y-45 Defender with Beam Rifle Last Messages --------------- K-01 Serf collects debris. Acquired 17 matter. Imp. Ion Engine destroyed. 1 JBMS1O/Z>O8LTF2Z|WU0I> S-10 Pest destroyed. Wheel destroyed. Recalibrator destroyed. Destroyed Flight Unit. S-10 Pest knocked back. Cld. Ion Engine destroyed. Wheel destroyed. Destroyed Lgt. Ion Engine. S-10 Pest destroyed. M-28 Smith destroyed. S-10 Pest destroyed. [Achievement: First Step to Greatness] The achievement interface (ESC then open Records) offers an effective way to explore all of your earned achievements as well as seek out new goals for future runs. Map ----- +----------------------------------------------------+ | ########?????????????????????? | | ##+############ ########?????????????????????? | | = # ###### ##???????????????????????????? | | # ##### ##???????????????????????????? | | # = ####?## ##???????????????????????????? | | # * # #?## ##???????????????????????????? | | # * * ## #?## # ???? ??????????????????? | | # ####?## # ???? ##??????????????????? | | # #????## # ???? # ??????????????????? | | # ##????## # ???? # ??????????????????? | | # #????## # ???? # ??????????????????? | | ## # ##????## # ???? # ??????????????????? | | ### # #????## # ???? # ??????????????????? | | ?### = # ####### # ???? # ??????????????????? | | ?# # # # ######## # ?? # # ??????????????????? | | ?#### ###/ # ##??## # ??????????????????? | | ??# # ## # ##??## ##??????????????????? | | ??# # # #= """ # ##??## ##??????????????????? | | ??## ### """ + ##??## ##??????????????????? | | ??## #/ """ # ##??## ##??????????????????? | | ??## # # ###?## # ??????????????????? | | ??## ######## ###### # ??????????????????? | | ??## % = ##### # ??????????????????? | | ??## ####### # ??????????????????? | | ??### # ## ## = + ??????????????????? | | ??### ##### @[==# ??????????????????? | | ????# ######## #####%=Y# ??????????????????? | | ????# #?????############%!*# ??????????????????? | | ????# #????? ######?## [ # ??????????????????? | | ????# #???????????????## ##??????????????????? | | ????# #???????????????#" ##??????????????????? | | ????# #???????????????## ##??????????????????? | | ????# #???????????????##* ;# ?????????????????? | | ????# ????????????????##%%[## ?????????????????? | | ????+ ????????????????## "# ?????????????????? | | ????# ????????????????# #??????????????????? | | ????# ????????????????? % ??????????????????? | | ????# ????????????????? ??????????????????? | | ???? ?????????????a??? ????????????????? | | ???? ????????????????# "##????????????????? | | ???? ????????????????###+#####????????????????? | | ????? ????????????????# ????????????????? | | ??????????????????????????? ????????????????????? | | ??????????????????????????? ????????????????????? | | ??????????????????????????? ????????????????????? | | ??????????????????????????? ????????????????????? | | ?????????????????????????????????????????????????? | | ?????????????????????????????????????????????????? | | ?????????????????????????????????????????????????? | | ?????????????????????????????????????????????????? | +----------------------------------------------------+ Best States ------------- Heat Dissipation 31 Energy Generation 23 Energy Capacity 445 Matter Stores 380 Matter Capacity 500 Sight Range 20 Terrain Scan Density 10 Armor Coverage 150 Propulsion Shielding 33 Evasion (%) 55 Recoil Reduction 2 Particle Charging 15 Item Schematics ----------------- None Robot Schematics ------------------ None Fabricated ------------ Nothing Alien Tech Used ----------------- None Achievements -------------- First Step to Greatness Hey, That's Mine! Loot Pinata One Hack Too Far Remodeling Risk Taker Shopping List Storm Trooper Uninvited Guest Unlikely Earthworm Challenges ------------ None Game ------ Seed SwarmDeuteriumShifter Manual? 0 Play Time 01:01:49 Cumulative 1.0 hours Start 2025.03.26 @ 12:27:12 End 2025.03.27 @ 12:09:15 Sessions 3 Manual Loads 0 Difficulty Rogue Special Mode None Game No. 1 Rogue 1 Adventurer 0 Explorer 0 Win Type - Total 0 Types 0/0/0/0/0/0/0/0/0 Lore% 0 Gallery% 3 Achievement% 3 Wizard Run 0 Options --------- Layout 1 ASCII 0 Keyboard 0 Movement Mouse Keybinds 0 Fullscreen 2 Font 24/Cog Map View 50x35 Zoom Use 0% Tactical HUD 0 Map Filters NONE Filters NONE Steam 1 RUN: 6bb578c3-d8ec-46b1-ac6b-35b59e476a5f